bitfinex-derivatives/quotes_BNBF0:USTF0_20250331
["timestamp","ask_amount","ask_price","bid_price","bid_amount"]
[1743416700622,0.912,589.7,589.3,0.27329322]
[1743416700922,0.912,589.7,589.31,0.27329322]
[1743416701123,0.912,589.7,589.32,0.27329322]
[1743416701321,0.912,589.7,589.33,0.27329322]
[1743416701526,0.912,589.7,589.34,0.61265589]
[1743416701719,0.912,589.7,589.35,0.27329322]
[1743416701924,0.912,589.7,589.36,0.61264438]
[1743416702121,1.669,589.7,589.37,0.61263862]
[1743416702618,1.669,589.7,589.38,0.61263286]
[1743416702918,1.669,589.7,589.39,0.6126271]
[1743416703125,1.669,589.7,589.4,0.61262135]
[1743416703323,1.669,589.7,589.41,0.33932237]
[1743416703524,1.669,589.7,589.42,0.27329322]
[1743416703719,1.669,589.7,589.43,0.27329322]
[1743416703924,1.669,589.7,589.44,0.27329322]
[1743416704127,1.669,589.7,589.45,0.27329322]
[1743416704324,1.669,589.7,589.46,0.27329322]
[1743416704521,1.669,589.7,589.47,0.27329322]
[1743416704718,1.669,589.7,589.48,0.27329322]
[1743416704922,1.669,589.7,589.49,0.27329322]
[1743416705123,1.669,589.7,589.42,0.27329322]
[1743416705322,1.669,589.7,589.43,0.27329322]
[1743416705520,1.669,589.7,589.44,0.27329322]
[1743416705721,1.669,589.7,589.45,0.27329322]
[1743416706025,1.669,589.7,589.46,0.27329322]
[1743416706222,1.669,589.7,589.42,0.27329322]
[1743416706423,1.669,589.7,589.43,0.27329322]
[1743416706618,1.669,589.7,589.44,0.27329322]
[1743416706825,1.669,589.7,589.41,0.33932237]
[1743416707021,1.669,589.7,589.42,0.27335432]
[1743416707223,1.669,589.7,589.43,0.33931085]
[1743416707423,1.669,589.7,589.44,0.27335432]
[1743416707625,1.669,589.7,589.45,0.61265366]
[1743416707821,1.669,589.7,589.46,0.27335432]
[1743416708126,1.669,589.7,589.47,0.27335432]
[1743416708526,1.669,589.7,589.48,0.27335432]
[1743416708822,1.669,589.7,589.45,0.33929934]
[1743416708823,1.669,589.7,589.49,0.27335432]
[1743416709027,1.669,589.7,589.5,0.27335432]
[1743416709228,1.669,589.7,589.51,0.27335432]
[1743416709528,1.669,589.7,589.52,0.27335432]
[1743416709724,1.669,589.7,589.46,0.27335432]
[1743416710028,1.669,589.7,589.47,0.27335432]
[1743416710226,1.669,589.7,589.45,0.33929934]
[1743416710227,1.669,589.7,589.48,0.27335432]
[1743416710427,1.669,589.7,589.49,0.27335432]
[1743416710627,1.669,589.7,589.5,0.27335432]
[1743416710928,1.669,589.7,589.51,0.27335432]
[1743416711130,1.669,589.7,589.52,0.27335432]
[1743416711330,1.669,589.7,589.53,0.27335432]
[1743416711531,1.669,589.7,589.54,0.27335432]
[1743416711725,1.669,589.7,589.46,0.27335432]
[1743416711925,1.669,589.7,589.45,0.33929934]
[1743416711926,1.669,589.7,589.47,0.27335432]
[1743416712124,1.669,589.7,589.48,0.27335432]
[1743416712325,1.669,589.7,589.49,0.27352937]
[1743416712625,1.669,589.7,589.45,0.33929934]
[1743416712626,1.669,589.7,589.5,0.27352937]
[1743416712830,1.669,589.7,589.51,0.27352937]
[1743416713031,1.669,589.7,589.52,0.27352937]
[1743416713231,1.669,589.7,589.53,0.27352937]
[1743416713431,1.669,589.7,589.54,0.27352937]
[1743416713629,1.669,589.7,589.46,0.27352937]
[1743416713823,1.669,589.7,589.47,0.27352937]
[1743416714034,1.669,589.7,589.48,0.27352937]
[1743416714227,1.669,589.7,589.49,0.27352937]
[1743416714531,1.669,589.7,589.5,0.27352937]
[1743416714727,1.669,589.7,589.51,0.27352937]
[1743416715032,1.669,589.7,589.52,0.27352937]
[1743416715231,1.669,589.7,589.53,0.27352937]
[1743416715428,1.669,589.7,589.54,0.27352937]
[1743416715634,1.669,589.7,589.46,0.27352937]
[1743416716030,1.669,589.7,589.47,0.33928783]
[1743416716228,1.669,589.7,589.48,0.27352937]
[1743416716730,1.669,589.7,589.49,0.33927632]
[1743416716930,1.669,589.7,589.5,0.27352937]
[1743416717127,1.669,589.7,589.51,0.33926481]
[1743416717434,1.669,589.7,589.52,0.27352937]
[1743416717731,1.669,589.7,589.53,0.3392533]
[1743416717932,1.669,589.7,589.54,0.27352937]
[1743416718134,1.669,589.7,589.54,0.61277691]
[1743416718329,1.669,589.7,589.55,0.27352937]
[1743416719435,1.669,589.7,589.54,0.33924754]
[1743416719636,1.669,589.7,589.55,0.27339308]
[1743416721636,1.669,589.7,589.56,0.27339308]
[1743416721840,1.669,589.7,589.55,0.27339308]
[1743416722134,1.669,589.7,589.56,0.27323383]
[1743416722331,1.669,589.7,589.57,0.27323383]
[1743416722535,1.669,589.7,589.58,0.27323383]
[1743416722735,1.669,589.7,589.54,0.33924754]
[1743416722736,1.669,589.7,589.55,0.27323383]
[1743416722938,1.669,589.7,589.56,0.27323383]
[1743416723138,1.669,589.7,589.57,0.27323383]
[1743416723332,0.912,589.7,589.55,0.27323383]
[1743416723536,0.912,589.7,589.56,0.27323383]
[1743416723736,0.912,589.7,589.57,0.61246411]
[1743416724142,0.912,589.7,589.58,0.27323383]
[1743416724442,0.912,589.7,589.59,0.27323383]
[1743416724636,0.912,589.7,589.6,0.27323383]
[1743416724944,0.912,589.7,589.58,0.27323383]
[1743416725132,0.912,589.7,589.59,0.27323383]
[1743416725338,0.912,589.7,589.58,0.27323383]
[1743416725539,0.912,589.7,589.59,0.27323383]
[1743416725840,0.912,589.7,589.6,0.61244685]
[1743416726034,0.912,589.7,589.61,0.27323383]
[1743416726236,0.912,589.7,589.62,0.33920151]
[1743416726435,0.912,589.7,589.63,0.27323383]
[1743416727032,0.912,589.7,589.64,0.33919001]
[1743416727333,0.912,589.7,589.65,0.27323383]
[1743416728039,0.912,589.7,589.66,0.3391785]
[1743416728241,0.912,589.7,589.67,0.27323383]
[1743416728442,0.912,589.7,589.68,0.27280181]
[1743416728634,0.912,589.7,589.69,0.27280181]
[1743416730237,0.912,589.7,589.69,0.27271609]
[1743416731342,0.912,589.7,589.67,0.27271609]
[1743416731540,0.912,589.7,589.68,0.27271609]
[1743416731736,0.912,589.7,589.69,0.27271609]
[1743416732638,0.912,589.7,589.67,0.27271609]
[1743416732833,0.912,589.7,589.68,0.61188309]
[1743416733034,0.912,589.7,589.69,0.61187734]
[1743416737343,0.912,589.7,589.69,0.33916125]
[1743416737543,0.912,589.7,589.69,0.61148308]
[1743416740842,0.912,589.7,589.69,0.33916125]
[1743416741041,0.912,589.7,589.69,0.6114834]
[1743416742639,0.912,589.7,589.69,0.33916125]
[1743416742844,0.912,589.7,589.69,0.61145128]
[1743416743445,0.912,589.7,589.69,0.33916125]
[1743416743646,0.912,589.7,589.69,0.61144544]
[1743416748051,1.337,589.98,589.69,0.61144544]
[1743416748245,1.337,589.98,589.7,0.27228419]
[1743416748451,1.337,589.98,589.71,0.27228419]
[1743416748756,1.337,589.98,589.72,0.27228419]
[1743416748951,1.337,589.98,589.73,0.61142243]
[1743416749254,1.337,589.98,589.74,0.27228419]
[1743416749553,1.337,589.98,589.75,0.27228419]
[1743416749753,1.337,589.98,589.76,0.33912099]
[1743416750054,1.337,589.98,589.77,0.27222645]
[1743416750354,1.337,589.98,589.78,0.61133594]
[1743416750547,1.337,589.98,589.79,0.61133019]
[1743416750751,1.337,589.98,589.8,0.61132444]
[1743416750951,1.337,589.98,589.81,0.6113187]
[1743416751152,1.337,589.98,589.82,0.61131295]
[1743416751348,1.337,589.98,589.83,0.6113072]
[1743416751554,1.337,589.98,589.84,0.61130145]
[1743416751749,1.337,589.98,589.85,0.6112957]
[1743416751947,1.337,589.98,589.86,0.61128995]
[1743416752151,1.337,589.98,589.87,0.6112842]
[1743416752452,1.337,589.98,589.88,0.61127846]
[1743416752653,1.337,589.98,589.89,0.61127271]
[1743416752861,1.337,589.98,589.9,0.61126696]
[1743416753062,1.337,589.98,589.91,0.61126121]
[1743416753257,1.337,589.98,589.92,0.61125547]
[1743416753560,1.337,589.98,589.93,0.61124972]
[1743416753760,1.337,589.98,589.94,0.61124397]
[1743416753961,1.337,589.98,589.95,0.27222645]
[1743416754855,1.337,589.98,589.96,0.33900603]
[1743416755060,1.337,589.98,589.97,0.27222645]
[1743416759063,1.337,589.98,589.97,0.61122673]
[1743416760370,1.337,589.98,589.97,0.33900028]
[1743416760669,1.337,589.98,589.97,0.61138687]
[1743416764366,0.685,589.98,589.97,0.61138687]
[1743416765668,1.053,590.05,589.97,0.61138687]
[1743416765867,1.053,590.05,589.98,0.61138113]
[1743416766074,1.053,590.05,589.99,0.61137538]
[1743416766377,1.053,590.05,590.0,0.61136964]
[1743416766572,1.053,590.05,589.85,2.5552563]
[1743416766573,1.053,590.05,590.01,0.61136389]
[1743416766773,1.053,590.05,589.85,2.5552563]
[1743416766774,1.053,590.05,590.02,0.61135815]
[1743416766972,1.053,590.05,590.03,0.6113524]
[1743416767169,1.053,590.05,590.04,0.61134666]
[1743416767774,1.053,590.05,590.04,0.33896007]
[1743416768375,1.053,590.05,590.04,0.61137022]
[1743416771080,1.053,590.05,590.04,0.61132362]
[1743416772785,1.053,590.05,590.04,0.33896007]
[1743416772988,1.053,590.05,590.04,0.61139063]
[1743416774479,1.053,590.05,590.04,0.33896007]
[1743416774685,1.053,590.05,590.04,0.61126116]
[1743416779188,0.74,590.12,590.04,0.61126116]
[1743416779391,0.74,590.12,590.05,0.61125541]
[1743416779587,0.74,590.12,590.06,0.61124967]
[1743416779783,0.74,590.12,590.07,0.61124392]
[1743416779983,0.74,590.12,590.08,0.61123818]
[1743416780183,0.74,590.12,590.09,0.61123243]
[1743416780381,0.74,590.12,590.1,0.27230109]
[1743416780585,0.74,590.12,590.1,0.61122669]
[1743416780788,0.74,590.12,590.11,0.27230109]
[1743416780982,0.74,590.12,590.11,0.61122095]
[1743416782187,0.74,590.12,590.11,0.61092672]
[1743416783789,0.35086209,590.12,590.11,0.61092672]
[1743416784097,1.662,590.33,590.11,0.61092672]
[1743416784387,1.662,590.33,590.12,0.27200686]
[1743416784789,1.662,590.33,590.13,0.33890837]
[1743416784993,1.662,590.33,590.14,0.27200686]
[1743416785193,1.662,590.33,590.15,0.33889689]
[1743416785390,1.662,590.33,590.16,0.27200686]
[1743416785591,1.662,590.33,590.17,0.3388854]
[1743416785796,1.662,590.33,590.18,0.27200686]
[1743416785996,1.662,590.33,590.19,0.33887392]
[1743416786196,1.662,590.33,590.2,0.27200686]
[1743416786393,1.662,590.33,590.21,0.33886243]
[1743416786594,1.662,590.33,590.22,0.27200686]
[1743416786794,1.662,590.33,590.23,0.33885095]
[1743416786994,1.662,590.33,590.24,0.27200686]
[1743416787296,1.662,590.33,590.25,0.33883947]
[1743416787490,1.662,590.33,590.26,0.27200686]
[1743416787891,1.662,590.33,590.27,0.33882799]
[1743416788094,1.662,590.33,590.28,0.27200686]
[1743416788890,1.662,590.33,590.27,0.33882799]
[1743416789196,1.662,590.33,590.28,0.27226248]
[1743416792698,1.662,590.33,590.29,0.27241353]
[1743416792895,1.662,590.33,590.3,0.27241353]
[1743416793093,1.662,590.33,590.31,0.27241353]
[1743416793401,1.662,590.33,590.32,0.27241353]
[1743416793599,1.662,590.33,590.28,0.27241353]
[1743416798811,0.946,590.33,590.28,0.27241353]
[1743416799611,0.946,590.33,590.27,0.33882799]
[1743416799806,0.946,590.33,590.28,0.27262083]
[1743416813719,0.946,590.33,590.27,0.33882799]
[1743416813921,0.946,590.33,590.28,0.27238111]
[1743416814720,0.946,590.33,590.29,0.33881651]
[1743416815019,0.946,590.33,590.3,0.27238111]
[1743416815220,0.946,590.33,590.31,0.33880503]
[1743416815419,0.946,590.33,590.32,0.27238111]
[1743416815620,0.946,590.33,590.32,0.6111804]
[1743416823827,0.946,590.33,590.32,0.33879929]
[1743416824027,0.946,590.33,590.32,0.61085573]
[1743416827936,1.052,590.56,590.32,0.61085573]
[1743416828235,1.052,590.56,590.33,0.27205644]
[1743416828438,1.052,590.56,590.34,0.27205644]
[1743416828632,1.052,590.56,590.35,0.27205644]
[1743416828935,1.052,590.56,590.36,0.61083277]
[1743416829136,1.052,590.56,590.37,0.61085133]
[1743416829338,1.052,590.56,590.38,0.27208073]
[1743416829536,1.052,590.56,590.39,0.61083985]
[1743416829736,0.663,590.6,590.39,0.61083985]
[1743416829737,0.663,590.6,590.4,0.27208073]
[1743416830035,0.663,590.6,590.41,0.27208073]
[1743416830237,0.663,590.6,590.42,0.61082264]
[1743416830429,0.663,590.6,590.43,0.6108169]
[1743416830634,0.663,590.6,590.44,0.61081116]
[1743416830830,0.663,590.6,590.45,0.61080543]
[1743416831034,0.663,590.6,590.46,0.61079969]
[1743416831237,0.663,590.6,590.47,0.61079395]
[1743416831431,0.663,590.6,590.47,0.33871322]
[1743416831632,0.663,590.6,590.48,0.27185182]
[1743416832734,0.663,590.6,590.49,0.2717956]
[1743416833039,0.663,590.6,590.47,0.33871322]
[1743416833040,0.663,590.6,590.5,0.2717956]
[1743416833240,0.663,590.6,590.48,0.2717956]
[1743416833541,0.663,590.6,590.49,0.2717956]
[1743416833840,0.663,590.6,590.5,0.2717956]
[1743416834136,0.663,590.6,590.51,0.2717956]
[1743416834334,0.663,590.6,590.47,0.33871322]
[1743416834539,0.663,590.6,590.48,0.27178894]
[1743416842347,0.663,590.6,590.49,0.2719478]
[1743416842646,0.663,590.6,590.5,0.2719478]
[1743416842845,0.663,590.6,590.48,0.2719478]
[1743416843045,0.663,590.6,590.49,0.2719478]
[1743416843245,0.663,590.6,590.47,0.33871322]
[1743416843246,0.663,590.6,590.48,0.2719478]
[1743416843543,0.663,590.6,590.49,0.2719478]
[1743416843745,0.663,590.6,590.48,0.2719478]
[1743416844046,0.663,590.6,590.49,0.2719478]
[1743416844244,0.663,590.6,590.48,0.2719478]
[1743416844447,0.663,590.6,590.49,0.2719478]
[1743416844747,0.663,590.6,590.5,0.2719478]
[1743416844947,0.663,590.6,590.48,0.2719478]
[1743416846653,0.663,590.6,590.47,0.33871322]
[1743416846951,0.663,590.6,590.48,0.27214208]
[1743416848446,0.663,590.6,590.49,0.27218054]
[1743416848653,0.663,590.6,590.48,0.27218054]
[1743416848852,0.663,590.6,590.49,0.27218054]
[1743416849045,0.663,590.6,590.48,0.27218054]
[1743416849248,0.663,590.6,590.49,0.27218054]
[1743416849445,0.663,590.6,590.48,0.27218054]
[1743416851652,0.815,590.75,590.48,0.27218054]
[1743416852152,0.815,590.75,590.49,0.27215438]
[1743416852352,0.815,590.75,590.48,0.27215438]
[1743416852557,0.815,590.75,590.49,0.27215438]
[1743416852749,0.815,590.75,590.48,0.27215438]
[1743416852955,0.815,590.75,590.49,0.27215438]
[1743416853154,0.815,590.75,590.48,0.27215438]
[1743416853354,0.815,590.75,590.49,0.27215438]
[1743416853656,0.815,590.75,590.5,0.27215438]
[1743416853854,0.815,590.75,590.48,0.27215438]
[1743416854954,1.471,590.75,590.48,0.27215438]
[1743416863658,1.471,590.75,590.49,0.27200428]
[1743416863857,1.471,590.75,590.48,0.27200428]
[1743416864161,0.656,590.75,590.49,0.27200428]
[1743416864360,0.656,590.75,590.48,0.27200428]
[1743416864563,0.656,590.75,590.49,0.27200428]
[1743416864761,0.656,590.75,590.48,0.27200428]
[1743416864962,0.656,590.75,590.49,0.27200428]
[1743416865162,0.656,590.75,590.47,0.33871322]
[1743416865163,0.656,590.75,590.48,0.27200428]
[1743416865362,0.656,590.75,590.49,0.27200428]
[1743416865562,0.656,590.75,590.5,0.27200428]
[1743416865763,0.656,590.75,590.48,0.27200428]
[1743416865961,0.656,590.75,590.47,0.33871322]
[1743416866163,0.656,590.75,590.48,0.2719634]
[1743416866463,0.656,590.75,590.49,0.2719634]
[1743416866862,0.656,590.75,590.5,0.33869602]
[1743416867262,0.656,590.75,590.51,0.2719634]
[1743416867462,0.656,590.75,590.5,0.33869602]
[1743416867667,0.656,590.75,590.51,0.27186945]
[1743416867867,0.656,590.75,590.52,0.33868454]
[1743416868060,0.656,590.75,590.53,0.27186945]
[1743416868266,0.656,590.75,590.54,0.33867307]
[1743416868568,0.656,590.75,590.55,0.27186945]
[1743416872867,0.656,590.75,590.55,0.61053679]
[1743416873066,0.656,590.75,590.56,0.27186945]
[1743416873475,0.656,590.75,590.57,0.27186945]
[1743416873772,0.656,590.75,590.58,0.27186945]
[1743416873968,0.656,590.75,590.59,0.27186945]
[1743416874170,0.656,590.75,590.55,0.33866734]
[1743416874368,0.656,590.75,590.56,0.27108127]
[1743416874769,0.656,590.75,590.57,0.27108127]
[1743416874969,0.656,590.75,590.58,0.33865014]
[1743416875279,0.656,590.75,590.59,0.27108127]
[1743416876171,0.656,590.75,590.6,0.33863867]
[1743416876376,0.656,590.75,590.61,0.27108127]
[1743416877079,1.0,590.77,590.62,0.3386272]
[1743416877271,1.0,590.77,590.63,0.27108127]
[1743416878281,1.0,590.77,590.64,0.33861573]
[1743416878578,1.0,590.77,590.65,0.27108127]
[1743416878978,1.0,590.77,590.66,0.33860427]
[1743416879173,1.0,590.77,590.67,0.27108127]
[1743416879380,1.0,590.77,590.68,0.3385928]
[1743416879580,1.0,590.77,590.69,0.27108127]
[1743416881083,1.0,590.77,590.7,0.27118709]
[1743416881379,1.0,590.77,590.71,0.27118709]
[1743416881579,1.0,590.77,590.69,0.27118709]
[1743416881882,1.0,590.77,590.7,0.27118709]
[1743416882079,1.0,590.77,590.69,0.27118709]
[1743416882281,1.0,590.77,590.7,0.27118709]
[1743416882578,1.0,590.77,590.71,0.27118709]
[1743416882779,1.0,590.77,590.69,0.27118709]
[1743416882980,0.881,590.83,590.69,0.27118709]
[1743416884383,0.881,590.83,590.7,0.27122118]
[1743416884576,0.881,590.83,590.69,0.27122118]
[1743416884778,0.881,590.83,590.7,0.27122118]
[1743416884979,0.881,590.83,590.69,0.27122118]
[1743416885177,0.881,590.83,590.7,0.27122118]
[1743416885483,0.881,590.83,590.71,0.27122118]
[1743416885680,0.881,590.83,590.72,0.27122118]
[1743416885979,0.881,590.83,590.73,0.27122118]
[1743416886282,0.881,590.83,590.74,0.27122118]
[1743416886480,0.881,590.83,590.69,0.27122118]
[1743416886786,0.881,590.83,590.75,0.27122118]
[1743416886979,0.881,590.83,590.76,0.27122118]
[1743416887180,0.881,590.83,590.69,0.27122118]
[1743416887384,0.881,590.83,590.7,0.27122118]
[1743416887587,0.881,590.83,590.71,0.27122118]
[1743416887789,0.881,590.83,590.69,0.27122118]
[1743416887980,0.881,590.83,590.7,0.27122118]
[1743416888183,0.881,590.83,590.71,0.27122118]
[1743416888383,0.881,590.83,590.72,0.27122118]
[1743416888582,0.881,590.83,590.73,0.27122118]
[1743416888784,0.881,590.83,590.69,0.27122118]
[1743416888984,0.881,590.83,590.68,0.3385928]
[1743416888985,0.881,590.83,590.7,0.27122118]
[1743416889186,0.881,590.83,590.69,0.27122118]
[1743416889387,0.881,590.83,590.7,0.27122118]
[1743416889587,0.881,590.83,590.69,0.27122118]
[1743416889788,0.881,590.83,590.68,0.3385928]
[1743416889789,0.881,590.83,590.7,0.27122118]
[1743416889989,0.881,590.83,590.69,0.27122118]
[1743416890191,0.881,590.83,590.7,0.27122118]
[1743416890390,0.881,590.83,590.69,0.27122118]
[1743416890589,0.881,590.83,590.7,0.27122118]
[1743416890790,0.881,590.83,590.71,0.27122118]
[1743416891091,0.881,590.83,590.68,0.3385928]
[1743416891295,0.881,590.83,590.72,0.27133119]
[1743416891685,0.881,590.83,590.73,0.27133119]
[1743416891985,0.881,590.83,590.69,0.27133119]
[1743416892186,0.881,590.83,590.7,0.27133119]
[1743416892386,0.881,590.83,590.69,0.27133119]
[1743416892593,0.881,590.83,590.7,0.27133119]
[1743416892887,0.881,590.83,590.71,0.27133119]
[1743416893091,0.881,590.83,590.69,0.27133119]
[1743416893386,0.881,590.83,590.7,0.27133119]
[1743416893592,0.881,590.83,590.71,0.27133119]
[1743416893792,0.881,590.83,590.69,0.27133119]
[1743416893998,0.881,590.83,590.7,0.27133119]
[1743416894193,0.881,590.83,590.71,0.27133119]
[1743416894397,0.881,590.83,590.72,0.27133119]
[1743416894598,0.881,590.83,590.73,0.27133119]
[1743416894800,0.881,590.83,590.68,0.3385928]
[1743416894801,0.881,590.83,590.69,0.27133119]
[1743416894999,0.881,590.83,590.7,0.27133119]
[1743416895195,0.881,590.83,590.71,0.27133119]
[1743416895399,0.881,590.83,590.69,0.27133119]
[1743416895596,0.881,590.83,590.7,0.27133119]
[1743416895794,0.881,590.83,590.71,0.27133119]
[1743416895998,0.881,590.83,590.69,0.27133119]
[1743416896199,0.881,590.83,590.7,0.27133119]
[1743416896399,0.881,590.83,590.69,0.27133119]
[1743416897099,0.881,590.83,590.7,0.33858134]
[1743416897296,0.881,590.83,590.71,0.27133119]
[1743416897696,0.881,590.83,590.72,0.33856988]
[1743416897901,0.881,590.83,590.73,0.27133119]
[1743416898203,0.881,590.83,590.74,0.27116374]
[1743416898398,0.881,590.83,590.73,0.27116374]
[1743416898597,0.881,590.83,590.74,0.27116374]
[1743416898904,0.881,590.83,590.75,0.60971642]
[1743416899105,0.881,590.83,590.76,0.27116374]
[1743416901608,0.881,590.83,590.75,0.33855268]
[1743416901810,0.881,590.83,590.76,0.27118318]
[1743416902008,0.881,590.83,590.77,0.33854122]
[1743416902206,0.881,590.83,590.78,0.27118318]
[1743416902809,0.881,590.83,590.79,0.33852976]
[1743416903008,0.881,590.83,590.8,0.27118318]
[1743416903203,0.881,590.83,590.8,0.60970721]
[1743416903407,0.881,590.83,590.8,0.33852403]
[1743416903602,0.881,590.83,590.81,0.27111938]
[1743416905708,0.881,590.83,590.82,0.27111938]
[1743416907412,0.42925017,590.83,590.82,0.27111938]
[1743416907605,0.663,591.03,590.82,0.27111938]
[1743416907910,0.663,591.03,590.8,0.33852403]
[1743416907911,0.663,591.03,590.83,0.60962622]
[1743416908113,0.663,591.03,590.84,0.60962049]
[1743416908312,0.663,591.03,590.85,0.60961476]
[1743416908810,0.663,591.03,590.86,0.27111938]
[1743416916516,0.663,591.03,590.87,0.27111938]
[1743416916712,0.663,591.03,590.85,0.33849538]
[1743416916713,0.663,591.03,590.88,0.27111938]
[1743416916915,0.663,591.03,590.89,0.27111938]
[1743416917112,0.663,591.03,590.9,0.27111938]
[1743416917313,0.663,591.03,590.86,0.27111938]
[1743416917518,0.663,591.03,590.87,0.27111938]
[1743416917919,0.663,591.03,590.85,0.33849538]
[1743416917920,0.663,591.03,590.88,0.27111938]
[1743416918220,0.663,591.03,590.89,0.27111938]
[1743416918514,0.663,591.03,590.86,0.27111938]
[1743416918712,0.663,591.03,590.87,0.27111938]
[1743416918916,0.663,591.03,590.88,0.27111938]
[1743416919117,0.663,591.03,590.89,0.27147428]
[1743416919314,0.663,591.03,590.86,0.27147428]
[1743416919515,0.663,591.03,590.87,0.27147428]
[1743416919718,0.663,591.03,590.86,0.27147428]
[1743416919919,0.663,591.03,590.87,0.27147428]
[1743416920119,0.663,591.03,590.86,0.27147428]
[1743416920419,0.663,591.03,590.87,0.27147428]
[1743416920619,0.663,591.03,590.88,0.27147428]
[1743416920817,0.663,591.03,590.86,0.27147428]
[1743416921021,0.663,591.03,590.87,0.27147428]
[1743416921221,0.663,591.03,590.86,0.27147428]
[1743416922720,0.876,591.06,590.86,0.27147428]
[1743416923826,0.638,591.19,590.86,0.27147428]
[1743416924224,0.638,591.19,590.85,0.33849538]
[1743416924419,0.638,591.19,590.86,0.27157351]
[1743416925325,1.587,591.19,590.86,0.27157351]
[1743416925825,1.587,591.19,590.85,0.33849538]
[1743416926019,1.587,591.19,590.87,0.27154402]
[1743416926228,1.587,591.19,590.88,0.27154402]
[1743416926424,1.587,591.19,590.86,0.27154402]
[1743416926625,1.587,591.19,590.85,0.33849538]
[1743416926830,1.587,591.19,590.86,0.27154353]
[1743416927226,2.391,591.19,590.86,0.27154353]
[1743416927828,2.391,591.19,590.87,0.27154362]
[1743416928133,2.391,591.19,590.88,0.27154362]
[1743416928433,2.391,591.19,590.85,0.33849538]
[1743416928434,2.391,591.19,590.89,0.27154362]
[1743416928636,2.391,591.19,590.86,0.27154362]
[1743416928838,2.391,591.19,590.87,0.27154362]
[1743416929037,2.391,591.19,590.86,0.27154362]
[1743416929535,2.391,591.19,590.85,0.33849538]
[1743416929736,2.391,591.19,590.86,0.27149207]
[1743416932936,2.391,591.19,590.87,0.27148413]
[1743416933137,2.391,591.19,590.88,0.27148413]
[1743416933338,2.391,591.19,590.86,0.27148413]
[1743416933736,2.391,591.19,590.87,0.27149101]
[1743416933933,2.391,591.19,590.86,0.27149101]
[1743416934138,2.391,591.19,590.87,0.27149101]
[1743416934339,2.391,591.19,590.86,0.27149101]
[1743416934538,2.391,591.19,590.87,0.27149101]
[1743416934838,2.391,591.19,590.88,0.27149101]
[1743416935035,2.391,591.19,590.86,0.27149101]
[1743416935237,2.391,591.19,590.85,0.33849538]
[1743416935238,2.391,591.19,590.87,0.27149101]
[1743416935439,2.391,591.19,590.85,0.33849538]
[1743416935440,2.391,591.19,590.88,0.27149101]
[1743416935641,2.391,591.19,590.86,0.27149101]
[1743416935938,2.391,591.19,590.87,0.27149101]
[1743416936143,2.391,591.19,590.88,0.27149101]
[1743416936442,2.391,591.19,590.89,0.27149101]
[1743416936741,2.391,591.19,590.9,0.27149101]
[1743416936941,2.391,591.19,590.86,0.27149101]
[1743416937137,2.391,591.19,590.87,0.27149101]
[1743416937333,2.391,591.19,590.86,0.27149101]
[1743416937536,2.391,591.19,590.87,0.27149101]
[1743416937841,2.391,591.19,590.88,0.27149101]
[1743416938041,2.391,591.19,590.86,0.27149101]
[1743416938242,2.391,591.19,590.85,0.33849538]
[1743416938441,2.391,591.19,590.86,0.27145246]
[1743416941242,2.391,591.19,590.85,0.33849538]
[1743416941442,2.391,591.19,590.86,0.27144708]
[1743416945250,1.50765613,591.18,590.86,0.27144708]
[1743416945449,1.23729963,591.17,590.86,0.27144708]